[Event "Titled Tuesday Blitz April 4 Late 2023"]
[White "Ozalp, Burak"]
[Black "Mortazavi, Ali"]
[WhiteFideId "6314210"]
[BlackFideId "401323"]
[WhiteElo "2106"]
[BlackElo "2339"]
[Result "0-1"]
[Round "03"]
[TimeControl "180+2"]
[Date "2023.04.04"]
[WhiteClock "0:00:13"]
[BlackClock "0:00:55"]

1. d4 {[%clk 0:03:00]}  Nf6 {[%clk 0:02:59]} 2. c4 {[%clk 0:02:59]}  g6 {[%clk 0:03:00]} 3. Nc3 {[%clk 0:02:58]}  Bg7 {[%clk 0:03:00]} 4. e4 {[%clk 0:02:58]}  O-O {[%clk 0:03:01]} 5. Be2 {[%clk 0:02:58]}  d6 {[%clk 0:03:02]} 6. h4 {[%clk 0:02:58]}  h5 {[%clk 0:03:01]} 7. Nh3 {[%clk 0:02:57]}  Bxh3 {[%clk 0:02:56]} 8. Rxh3 {[%clk 0:02:53]}  c5 {[%clk 0:02:52]} 9. d5 {[%clk 0:02:39]}  Na6 {[%clk 0:02:50]} 10. Bg5 {[%clk 0:02:28]}  Nc7 {[%clk 0:02:50]} 11. Qd2 {[%clk 0:02:22]}  e6 {[%clk 0:02:46]} 12. O-O-O {[%clk 0:02:18]}  exd5 {[%clk 0:02:46]} 13. exd5 {[%clk 0:02:12]}  Qd7 {[%clk 0:02:41]} 14. Rg3 {[%clk 0:01:51]}  Nh7 {[%clk 0:02:03]} 15. Bh6 {[%clk 0:01:45]}  Be5 {[%clk 0:02:02]} 16. Bxf8 {[%clk 0:01:34]}  Bxg3 {[%clk 0:01:46]} 17. fxg3 {[%clk 0:01:13]}  Rxf8 {[%clk 0:01:43]} 18. Ne4 {[%clk 0:01:13]}  Re8 {[%clk 0:01:30]} 19. Bd3 {[%clk 0:01:06]}  Re5 {[%clk 0:01:25]} 20. Qh6 {[%clk 0:01:01]}  Qe7 {[%clk 0:01:25]} 21. Qf4 {[%clk 0:00:24]}  b5 {[%clk 0:01:19]} 22. Rf1 {[%clk 0:00:20]}  bxc4 {[%clk 0:01:15]} 23. Nxd6 {[%clk 0:00:20]}  Re1+ {[%clk 0:01:01]} 24. Kd2 {[%clk 0:00:18]}  Rxf1 {[%clk 0:01:01]} 25. Bxf1 {[%clk 0:00:17]}  Nxd5 {[%clk 0:00:59]} 26. Qxf7+ {[%clk 0:00:14]}  Qxf7 {[%clk 0:00:59]} 27. Nxf7 {[%clk 0:00:14]}  Kxf7 {[%clk 0:01:00]} 28. Bxc4 {[%clk 0:00:14]}  Nf6 {[%clk 0:00:55]} 29. Kd3 {[%clk 0:00:13]}  Ke6 {[%clk 0:00:55]} 0-1


[Site "https://www.chess.com"]

[Event "Titled Tuesday Blitz April 4 Late 2023"]
[White "koncheto"]
[Black "micke12a"]
[WhiteElo "2546"]
[BlackElo "2339"]
[Result "0-1"]
[Round "03"]
[TimeControl "180+2"]
[Date "2023.04.04"]
[WhiteClock "0:00:03"]
[BlackClock "0:00:03"]

1. e4 {[%clk 0:03:00]}  g6 {[%clk 0:02:51]} 2. h4 {[%clk 0:02:52]}  h5 {[%clk 0:02:48]} 3. Nf3 {[%clk 0:02:50]}  Bg7 {[%clk 0:02:49]} 4. d4 {[%clk 0:02:50]}  c5 {[%clk 0:02:48]} 5. c3 {[%clk 0:02:47]}  Nc6 {[%clk 0:02:47]} 6. d5 {[%clk 0:02:40]}  Nb8 {[%clk 0:02:47]} 7. e5 {[%clk 0:02:39]}  d6 {[%clk 0:02:46]} 8. Bf4 {[%clk 0:02:38]}  Bg4 {[%clk 0:02:42]} 9. exd6 {[%clk 0:02:21]}  exd6 {[%clk 0:02:42]} 10. Qb3 {[%clk 0:02:21]}  Qc7 {[%clk 0:01:42]} 11. Bxd6 {[%clk 0:02:00]}  Qxd6 {[%clk 0:01:37]} 12. Nbd2 {[%clk 0:01:49]}  b6 {[%clk 0:01:28]} 13. O-O-O {[%clk 0:01:41]}  Bh6 {[%clk 0:01:17]} 14. Kb1 {[%clk 0:01:34]}  Bxf3 {[%clk 0:01:15]} 15. Bb5+ {[%clk 0:01:26]}  Nd7 {[%clk 0:01:14]} 16. Rhe1+ {[%clk 0:00:40]}  Kf8 {[%clk 0:01:10]} 17. gxf3 {[%clk 0:00:16]}  Bxd2 {[%clk 0:01:08]} 18. Rxd2 {[%clk 0:00:17]}  Ngf6 {[%clk 0:01:07]} 19. Kc2 {[%clk 0:00:07]}  Kg7 {[%clk 0:01:07]} 20. Re6 {[%clk 0:00:07]}  fxe6 {[%clk 0:01:05]} 21. dxe6 {[%clk 0:00:08]}  Qe7 {[%clk 0:00:50]} 22. exd7 {[%clk 0:00:06]}  Rad8 {[%clk 0:00:48]} 23. Re2 {[%clk 0:00:06]}  Qd6 {[%clk 0:00:46]} 24. Re6 {[%clk 0:00:05]}  Qf4 {[%clk 0:00:26]} 25. Re7+ {[%clk 0:00:05]}  Kh6 {[%clk 0:00:25]} 26. Qf7 {[%clk 0:00:06]}  Rh7 {[%clk 0:00:17]} 27. Qe6 {[%clk 0:00:03]}  Rxe7 {[%clk 0:00:15]} 28. Qxe7 {[%clk 0:00:04]}  Qf5+ {[%clk 0:00:15]} 29. Kc1 {[%clk 0:00:02]}  Rxd7 {[%clk 0:00:11]} 30. Bxd7 {[%clk 0:00:02]}  Nxd7 {[%clk 0:00:09]} 31. f4 {[%clk 0:00:02]}  Nf8 {[%clk 0:00:06]} 32. f3 {[%clk 0:00:01]}  Nh7 {[%clk 0:00:06]} 33. b3 {[%clk 0:00:01]}  Qf6 {[%clk 0:00:05]} 34. Qe3 {[%clk 0:00:01]}  Kg7 {[%clk 0:00:04]} 35. Kb2 {[%clk 0:00:02]}  Nf8 {[%clk 0:00:03]} 36. Qd3 {[%clk 0:00:02]}  Ne6 {[%clk 0:00:03]} 37. Qa6 {[%clk 0:00:03]}  Qxh4 {[%clk 0:00:01]} 38. Qxa7+ {[%clk 0:00:03]}  Kf6 {[%clk 0:00:02]} 39. Qxb6 {[%clk 0:00:04]}  Qxf4 {[%clk 0:00:02]} 40. a4 {[%clk 0:00:05]}  h4 {[%clk 0:00:02]} 41. a5 {[%clk 0:00:05]}  h3 {[%clk 0:00:03]} 42. a6 {[%clk 0:00:05]}  h2 {[%clk 0:00:03]} 43. a7 {[%clk 0:00:06]}  h1=Q {[%clk 0:00:02]} 44. a8=Q {[%clk 0:00:06]}  Qg2+ {[%clk 0:00:03]} 45. Kb1 {[%clk 0:00:05]}  Qf1+ {[%clk 0:00:03]} 46. Ka2 {[%clk 0:00:05]}  Qe2+ {[%clk 0:00:04]} 47. Ka3 {[%clk 0:00:05]}  Qexf3 {[%clk 0:00:03]} 48. Qxf3 {[%clk 0:00:04]}  Qxf3 {[%clk 0:00:03]} 49. Qc6 {[%clk 0:00:03]}  Qxc6 {[%clk 0:00:03]} 0-1


[Site "https://www.chess.com"]

[Event "Titled Tuesday Blitz April 4 Late 2023"]
[White "Defend1r"]
[Black "McNeill, Gordon"]
[BlackFideId "30920760"]
[WhiteElo "2536"]
[BlackElo "2103"]
[Result "0-1"]
[Round "03"]
[TimeControl "180+2"]
[Date "2023.04.04"]
[WhiteClock "0:00:08"]
[BlackClock "0:00:10"]

1. e4 {[%clk 0:03:00]}  d6 {[%clk 0:02:57]} 2. d4 {[%clk 0:03:00]}  Nf6 {[%clk 0:02:52]} 3. Nc3 {[%clk 0:02:59]}  e5 {[%clk 0:02:52]} 4. Nf3 {[%clk 0:02:51]}  Nbd7 {[%clk 0:02:51]} 5. Bc4 {[%clk 0:02:50]}  Be7 {[%clk 0:02:51]} 6. O-O {[%clk 0:02:49]}  O-O {[%clk 0:02:51]} 7. a4 {[%clk 0:02:48]}  c6 {[%clk 0:02:50]} 8. h3 {[%clk 0:02:48]}  Qe8 {[%clk 0:02:48]} 9. Ba2 {[%clk 0:02:47]}  Bd8 {[%clk 0:02:47]} 10. Re1 {[%clk 0:02:46]}  Ba5 {[%clk 0:02:39]} 11. Bd2 {[%clk 0:02:45]}  exd4 {[%clk 0:02:35]} 12. Nxd4 {[%clk 0:02:44]}  Nc5 {[%clk 0:02:23]} 13. f3 {[%clk 0:02:20]}  Bxc3 {[%clk 0:02:17]} 14. Bxc3 {[%clk 0:02:21]}  Nxa4 {[%clk 0:02:16]} 15. Bxf7+ {[%clk 0:02:21]}  Qxf7 {[%clk 0:02:15]} 16. Rxa4 {[%clk 0:02:20]}  Nh5 {[%clk 0:02:07]} 17. Qd2 {[%clk 0:01:52]}  Nf4 {[%clk 0:02:03]} 18. Ne2 {[%clk 0:01:36]}  Nxg2 {[%clk 0:01:51]} 19. Kxg2 {[%clk 0:01:12]}  Qxf3+ {[%clk 0:01:50]} 20. Kg1 {[%clk 0:01:09]}  Qf2+ {[%clk 0:01:41]} 21. Kh1 {[%clk 0:01:09]}  Qf3+ {[%clk 0:01:07]} 22. Kg1 {[%clk 0:01:08]}  Bxh3 {[%clk 0:01:00]} 23. Qg5 {[%clk 0:00:56]}  Qf2+ {[%clk 0:00:58]} 24. Kh1 {[%clk 0:00:55]}  Qf3+ {[%clk 0:00:34]} 25. Kh2 {[%clk 0:00:55]}  Qf2+ {[%clk 0:00:31]} 26. Kxh3 {[%clk 0:00:35]}  g6 {[%clk 0:00:24]} 27. Qg2 {[%clk 0:00:24]}  Qe3+ {[%clk 0:00:15]} 28. Ng3 {[%clk 0:00:24]}  Qh6+ {[%clk 0:00:13]} 29. Nh5 {[%clk 0:00:22]}  Qxh5+ {[%clk 0:00:14]} 30. Kg3 {[%clk 0:00:22]}  Qg5+ {[%clk 0:00:14]} 31. Kh2 {[%clk 0:00:22]}  Qh4+ {[%clk 0:00:15]} 32. Kg1 {[%clk 0:00:19]}  Rf4 {[%clk 0:00:15]} 33. Qh2 {[%clk 0:00:13]}  Rg4+ {[%clk 0:00:14]} 34. Kh1 {[%clk 0:00:13]}  Qg5 {[%clk 0:00:11]} 35. Bd2 {[%clk 0:00:10]}  Qf6 {[%clk 0:00:10]} 36. e5 {[%clk 0:00:08]}  Qf3+ {[%clk 0:00:10]} 0-1


[Site "https://www.chess.com"]

[Event "Titled Tuesday Blitz April 4 Late 2023"]
[White "Smith, Garrett L"]
[Black "Ortega Amarelle, Mariano"]
[WhiteFideId "2024829"]
[BlackFideId "3504301"]
[WhiteElo "2325"]
[BlackElo "2406"]
[Result "0-1"]
[Round "03"]
[TimeControl "180+2"]
[Date "2023.04.04"]
[WhiteClock "0:00:31"]
[BlackClock "0:01:15"]

1. e4 {[%clk 0:03:00]}  e6 {[%clk 0:02:48]} 2. d4 {[%clk 0:02:51]}  d5 {[%clk 0:02:49]} 3. Nc3 {[%clk 0:02:51]}  Bb4 {[%clk 0:02:48]} 4. exd5 {[%clk 0:02:51]}  exd5 {[%clk 0:02:48]} 5. Bd3 {[%clk 0:02:52]}  Nc6 {[%clk 0:02:48]} 6. a3 {[%clk 0:02:51]}  Bd6 {[%clk 0:02:46]} 7. Nge2 {[%clk 0:02:48]}  Nge7 {[%clk 0:02:46]} 8. Nb5 {[%clk 0:02:45]}  Bf5 {[%clk 0:02:45]} 9. Nxd6+ {[%clk 0:02:42]}  Qxd6 {[%clk 0:02:46]} 10. Bf4 {[%clk 0:02:42]}  Qd7 {[%clk 0:02:46]} 11. Bb5 {[%clk 0:02:33]}  a6 {[%clk 0:02:46]} 12. Ba4 {[%clk 0:02:33]}  b5 {[%clk 0:02:46]} 13. Bb3 {[%clk 0:02:34]}  Na5 {[%clk 0:02:45]} 14. O-O {[%clk 0:02:31]}  O-O {[%clk 0:02:42]} 15. Ng3 {[%clk 0:02:29]}  Bg6 {[%clk 0:02:40]} 16. Ba2 {[%clk 0:02:21]}  Nc4 {[%clk 0:02:36]} 17. Qc1 {[%clk 0:02:14]}  Rfe8 {[%clk 0:02:33]} 18. b3 {[%clk 0:02:11]}  Nd6 {[%clk 0:02:33]} 19. h4 {[%clk 0:02:07]}  h6 {[%clk 0:02:32]} 20. h5 {[%clk 0:02:06]}  Bh7 {[%clk 0:02:32]} 21. c4 {[%clk 0:01:59]}  dxc4 {[%clk 0:02:29]} 22. bxc4 {[%clk 0:01:59]}  Nxc4 {[%clk 0:02:27]} 23. Bxc4 {[%clk 0:01:58]}  bxc4 {[%clk 0:02:28]} 24. Qxc4 {[%clk 0:01:58]}  Nd5 {[%clk 0:02:29]} 25. Bd2 {[%clk 0:01:55]}  Qb5 {[%clk 0:02:21]} 26. Rfc1 {[%clk 0:01:53]}  Rab8 {[%clk 0:02:15]} 27. a4 {[%clk 0:01:45]}  Qxc4 {[%clk 0:02:15]} 28. Rxc4 {[%clk 0:01:46]}  Re6 {[%clk 0:02:04]} 29. Rc5 {[%clk 0:01:42]}  Rd8 {[%clk 0:01:59]} 30. a5 {[%clk 0:01:33]}  Bd3 {[%clk 0:01:51]} 31. Rac1 {[%clk 0:01:29]}  f6 {[%clk 0:01:43]} 32. f3 {[%clk 0:01:29]}  Kf7 {[%clk 0:01:37]} 33. Kf2 {[%clk 0:01:30]}  Rd7 {[%clk 0:01:33]} 34. Rc6 {[%clk 0:01:27]}  Rxc6 {[%clk 0:01:32]} 35. Rxc6 {[%clk 0:01:27]}  Bb5 {[%clk 0:01:32]} 36. Rc5 {[%clk 0:01:24]}  Ne7 {[%clk 0:01:32]} 37. Bc3 {[%clk 0:01:19]}  Nc6 {[%clk 0:01:32]} 38. Ke3 {[%clk 0:01:17]}  Ne7 {[%clk 0:01:28]} 39. Ne4 {[%clk 0:01:07]}  Nd5+ {[%clk 0:01:20]} 40. Kd2 {[%clk 0:01:07]}  Nf4 {[%clk 0:01:20]} 41. g3 {[%clk 0:01:06]}  Ne6 {[%clk 0:01:20]} 42. Rxb5 {[%clk 0:00:45]}  axb5 {[%clk 0:01:19]} 43. Ke3 {[%clk 0:00:46]}  c6 {[%clk 0:01:19]} 44. f4 {[%clk 0:00:34]}  Nc7 {[%clk 0:01:18]} 45. Nc5 {[%clk 0:00:34]}  Nd5+ {[%clk 0:01:19]} 46. Kd3 {[%clk 0:00:34]}  Ra7 {[%clk 0:01:16]} 47. a6 {[%clk 0:00:34]}  Nc7 {[%clk 0:01:15]} 48. Ba5 {[%clk 0:00:31]}  Nxa6 {[%clk 0:01:15]} 0-1


[Site "https://www.chess.com"]

[Event "Titled Tuesday Blitz April 4 Late 2023"]
[White "Kim, Sergey"]
[Black "Arun, Siddharth"]
[WhiteFideId "13700570"]
[BlackFideId "2079178"]
[WhiteElo "2535"]
[BlackElo "2317"]
[Result "0-1"]
[Round "03"]
[TimeControl "180+2"]
[Date "2023.04.04"]
[WhiteClock "0:01:19"]
[BlackClock "0:01:19"]

1. d4 {[%clk 0:03:00]}  d5 {[%clk 0:02:59]} 2. c4 {[%clk 0:03:00]}  e6 {[%clk 0:03:00]} 3. Nc3 {[%clk 0:03:00]}  c6 {[%clk 0:03:00]} 4. e3 {[%clk 0:03:00]}  f5 {[%clk 0:02:59]} 5. f4 {[%clk 0:02:59]}  Nf6 {[%clk 0:02:56]} 6. Nf3 {[%clk 0:02:59]}  Bd6 {[%clk 0:02:55]} 7. Bd3 {[%clk 0:02:59]}  O-O {[%clk 0:02:55]} 8. O-O {[%clk 0:02:59]}  Nbd7 {[%clk 0:02:54]} 9. Bd2 {[%clk 0:02:59]}  a5 {[%clk 0:02:45]} 10. Be1 {[%clk 0:02:59]}  Qe8 {[%clk 0:02:43]} 11. Ne5 {[%clk 0:02:53]}  Bxe5 {[%clk 0:02:41]} 12. fxe5 {[%clk 0:02:51]}  Ne4 {[%clk 0:02:40]} 13. Rc1 {[%clk 0:02:48]}  g5 {[%clk 0:02:34]} 14. Nxe4 {[%clk 0:02:39]}  fxe4 {[%clk 0:02:32]} 15. Be2 {[%clk 0:02:38]}  Rxf1+ {[%clk 0:02:32]} 16. Bxf1 {[%clk 0:02:37]}  Qg6 {[%clk 0:02:29]} 17. Be2 {[%clk 0:02:36]}  Nf8 {[%clk 0:02:29]} 18. Bh5 {[%clk 0:02:34]}  Qg7 {[%clk 0:02:28]} 19. Qg4 {[%clk 0:02:31]}  Bd7 {[%clk 0:02:27]} 20. h4 {[%clk 0:02:22]}  h6 {[%clk 0:02:17]} 21. hxg5 {[%clk 0:02:18]}  Qxg5 {[%clk 0:02:17]} 22. Qxg5+ {[%clk 0:02:07]}  hxg5 {[%clk 0:02:17]} 23. b3 {[%clk 0:02:03]}  b6 {[%clk 0:02:00]} 24. Kf2 {[%clk 0:01:58]}  Kg7 {[%clk 0:01:51]} 25. Kg3 {[%clk 0:01:57]}  Ng6 {[%clk 0:01:50]} 26. Kg4 {[%clk 0:01:55]}  Rf8 {[%clk 0:01:42]} 27. Bg3 {[%clk 0:01:47]}  Rf5 {[%clk 0:01:38]} 28. a4 {[%clk 0:01:39]}  Ne7 {[%clk 0:01:35]} 29. c5 {[%clk 0:01:37]}  b5 {[%clk 0:01:30]} 30. Kh3 {[%clk 0:01:30]}  b4 {[%clk 0:01:27]} 31. Be2 {[%clk 0:01:29]}  Rf8 {[%clk 0:01:27]} 32. Kg4 {[%clk 0:01:28]}  Kg6 {[%clk 0:01:25]} 33. Rh1 {[%clk 0:01:27]}  Ng8 {[%clk 0:01:25]} 34. Be1 {[%clk 0:01:24]}  Nh6+ {[%clk 0:01:21]} 35. Kh3 {[%clk 0:01:20]}  Nf5 {[%clk 0:01:19]} 36. Bd2 {[%clk 0:01:19]}  Rh8+ {[%clk 0:01:19]} 0-1


[Site "https://www.chess.com"]

[Event "Titled Tuesday Blitz April 4 Late 2023"]
[White "Bruedigam, Martin"]
[Black "olga-belka"]
[WhiteFideId "24608033"]
[WhiteElo "2331"]
[BlackElo "2299"]
[Result "1-0"]
[Round "03"]
[TimeControl "180+2"]
[Date "2023.04.04"]
[WhiteClock "0:00:08"]
[BlackClock "0:00:01"]

1. d4 {[%clk 0:03:00]}  Nf6 {[%clk 0:02:59]} 2. c4 {[%clk 0:03:01]}  g6 {[%clk 0:02:58]} 3. f3 {[%clk 0:03:00]}  d5 {[%clk 0:02:57]} 4. cxd5 {[%clk 0:03:00]}  Nxd5 {[%clk 0:02:57]} 5. e4 {[%clk 0:03:00]}  Nb6 {[%clk 0:02:55]} 6. Nc3 {[%clk 0:02:59]}  Bg7 {[%clk 0:02:55]} 7. Be3 {[%clk 0:02:59]}  O-O {[%clk 0:02:52]} 8. Qd2 {[%clk 0:02:49]}  c5 {[%clk 0:02:49]} 9. dxc5 {[%clk 0:02:42]}  Qxd2+ {[%clk 0:02:47]} 10. Kxd2 {[%clk 0:02:34]}  N6d7 {[%clk 0:02:46]} 11. Nh3 {[%clk 0:02:27]}  Nc6 {[%clk 0:02:39]} 12. Nf4 {[%clk 0:02:25]}  e6 {[%clk 0:02:36]} 13. Bb5 {[%clk 0:02:20]}  Nd4 {[%clk 0:02:29]} 14. Nd3 {[%clk 0:02:00]}  Rd8 {[%clk 0:02:23]} 15. Bxd7 {[%clk 0:01:38]}  Bxd7 {[%clk 0:02:09]} 16. Rad1 {[%clk 0:01:36]}  Rac8 {[%clk 0:02:04]} 17. Kc1 {[%clk 0:01:27]}  b6 {[%clk 0:01:54]} 18. e5 {[%clk 0:01:08]}  bxc5 {[%clk 0:01:47]} 19. f4 {[%clk 0:01:03]}  Bb5 {[%clk 0:01:28]} 20. Nxc5 {[%clk 0:00:59]}  Rxc5 {[%clk 0:01:05]} 21. Rxd4 {[%clk 0:00:51]}  Rxd4 {[%clk 0:00:59]} 22. Bxd4 {[%clk 0:00:52]}  Rc4 {[%clk 0:00:59]} 23. Rd1 {[%clk 0:00:49]}  Bf8 {[%clk 0:00:50]} 24. g3 {[%clk 0:00:47]}  a5 {[%clk 0:00:46]} 25. h4 {[%clk 0:00:38]}  a4 {[%clk 0:00:40]} 26. Kc2 {[%clk 0:00:37]}  Bb4 {[%clk 0:00:33]} 27. a3 {[%clk 0:00:28]}  Ba5 {[%clk 0:00:28]} 28. Be3 {[%clk 0:00:18]}  Bc6 {[%clk 0:00:23]} 29. Rd6 {[%clk 0:00:16]}  Kg7 {[%clk 0:00:18]} 30. Bd2 {[%clk 0:00:10]}  Be4+ {[%clk 0:00:15]} 31. Kd1 {[%clk 0:00:09]}  Bf3+ {[%clk 0:00:10]} 32. Ke1 {[%clk 0:00:09]}  Bc7 {[%clk 0:00:06]} 33. Rd3 {[%clk 0:00:08]}  Bg4 {[%clk 0:00:02]} 34. Be3 {[%clk 0:00:08]}  Ba5 {[%clk 0:00:01]} 35. Kd2 {[%clk 0:00:08]}  Bf5 {[%clk 0:00:01]} 36. Rd7 {[%clk 0:00:07]}  Bxc3+ {[%clk 0:00:01]} 37. bxc3 {[%clk 0:00:07]}  Rc6 {[%clk 0:00:01]} 38. Rb7 {[%clk 0:00:07]}  Rc8 {[%clk 0:00:01]} 39. Bd4 {[%clk 0:00:07]}  Rd8 {[%clk 0:00:01]} 40. Rb4 {[%clk 0:00:08]} 1-0


[Site "https://www.chess.com"]

[Event "Titled Tuesday Blitz April 4 Late 2023"]
[White "Wang, Alexander J"]
[Black "Richter, Paul"]
[WhiteFideId "30955270"]
[BlackFideId "2046350"]
[WhiteElo "2293"]
[BlackElo "2531"]
[Result "1-0"]
[Round "03"]
[TimeControl "180+2"]
[Date "2023.04.04"]
[WhiteClock "0:00:07"]
[BlackClock "0:00:09"]

1. e4 {[%clk 0:03:00]}  c5 {[%clk 0:02:59]} 2. Nf3 {[%clk 0:02:58]}  d6 {[%clk 0:02:59]} 3. d4 {[%clk 0:02:59]}  cxd4 {[%clk 0:02:59]} 4. Nxd4 {[%clk 0:03:00]}  Nf6 {[%clk 0:02:59]} 5. Nc3 {[%clk 0:03:00]}  g6 {[%clk 0:02:59]} 6. g3 {[%clk 0:03:01]}  Nc6 {[%clk 0:02:58]} 7. Bg2 {[%clk 0:03:00]}  Nxd4 {[%clk 0:02:56]} 8. Qxd4 {[%clk 0:02:59]}  Bg7 {[%clk 0:02:57]} 9. O-O {[%clk 0:02:57]}  O-O {[%clk 0:02:57]} 10. Qd1 {[%clk 0:02:56]}  Rb8 {[%clk 0:02:55]} 11. Be3 {[%clk 0:02:56]}  a6 {[%clk 0:02:51]} 12. a4 {[%clk 0:02:34]}  b5 {[%clk 0:02:47]} 13. axb5 {[%clk 0:02:34]}  axb5 {[%clk 0:02:48]} 14. h3 {[%clk 0:02:30]}  b4 {[%clk 0:02:44]} 15. Ne2 {[%clk 0:02:29]}  Bb7 {[%clk 0:02:39]} 16. f3 {[%clk 0:02:22]}  Qc7 {[%clk 0:02:34]} 17. c3 {[%clk 0:02:14]}  bxc3 {[%clk 0:02:32]} 18. bxc3 {[%clk 0:02:14]}  Rfc8 {[%clk 0:02:26]} 19. Qd2 {[%clk 0:02:08]}  Ra8 {[%clk 0:02:25]} 20. Rfb1 {[%clk 0:02:05]}  Ba6 {[%clk 0:02:21]} 21. Rc1 {[%clk 0:01:39]}  Bxe2 {[%clk 0:02:18]} 22. Rxa8 {[%clk 0:01:38]}  Rxa8 {[%clk 0:02:19]} 23. Qxe2 {[%clk 0:01:38]}  Nd7 {[%clk 0:02:17]} 24. Kh2 {[%clk 0:01:33]}  h5 {[%clk 0:02:13]} 25. f4 {[%clk 0:01:30]}  Ra4 {[%clk 0:02:08]} 26. c4 {[%clk 0:01:24]}  Qa5 {[%clk 0:02:01]} 27. Rc2 {[%clk 0:01:19]}  Ra1 {[%clk 0:01:51]} 28. Qd3 {[%clk 0:01:14]}  Nc5 {[%clk 0:01:23]} 29. Qd5 {[%clk 0:01:11]}  Qa3 {[%clk 0:01:00]} 30. Bxc5 {[%clk 0:00:53]}  dxc5 {[%clk 0:00:59]} 31. e5 {[%clk 0:00:41]}  h4 {[%clk 0:00:44]} 32. Qf3 {[%clk 0:00:32]}  hxg3+ {[%clk 0:00:43]} 33. Qxg3 {[%clk 0:00:31]}  Qb4 {[%clk 0:00:42]} 34. Qd3 {[%clk 0:00:25]}  Qe1 {[%clk 0:00:37]} 35. Re2 {[%clk 0:00:23]}  Qg1+ {[%clk 0:00:36]} 36. Kg3 {[%clk 0:00:23]}  e6 {[%clk 0:00:32]} 37. Qe3 {[%clk 0:00:22]}  Qb1 {[%clk 0:00:31]} 38. Qxc5 {[%clk 0:00:22]}  Bh6 {[%clk 0:00:27]} 39. Be4 {[%clk 0:00:19]}  Qb3+ {[%clk 0:00:24]} 40. Qe3 {[%clk 0:00:18]}  Qd1 {[%clk 0:00:25]} 41. Rg2 {[%clk 0:00:12]}  Qa4 {[%clk 0:00:20]} 42. Kh2 {[%clk 0:00:12]}  Qd1 {[%clk 0:00:19]} 43. Bxg6 {[%clk 0:00:09]}  fxg6 {[%clk 0:00:18]} 44. Rxg6+ {[%clk 0:00:10]}  Kh7 {[%clk 0:00:18]} 45. Qe4 {[%clk 0:00:09]}  Bxf4+ {[%clk 0:00:16]} 46. Rg3+ {[%clk 0:00:08]}  Kh8 {[%clk 0:00:12]} 47. Qxf4 {[%clk 0:00:07]}  Ra2+ {[%clk 0:00:11]} 48. Rg2 {[%clk 0:00:06]}  Rxg2+ {[%clk 0:00:09]} 49. Kxg2 {[%clk 0:00:07]}  Qe2+ {[%clk 0:00:09]} 50. Kg3 {[%clk 0:00:07]}  Qxc4 {[%clk 0:00:09]} 51. Qxc4 {[%clk 0:00:07]} 1-0


[Site "https://www.chess.com"]

[Event "Titled Tuesday Blitz April 4 Late 2023"]
[White "lluiss"]
[Black "Kokoszczynski, Jan"]
[BlackFideId "1174460"]
[WhiteElo "2263"]
[BlackElo "2139"]
[Result "0-1"]
[Round "03"]
[TimeControl "180+2"]
[Date "2023.04.04"]
[WhiteClock "0:00:01"]
[BlackClock "0:01:56"]

1. c4 {[%clk 0:03:00]}  e5 {[%clk 0:02:54]} 2. Nc3 {[%clk 0:02:59]}  Nf6 {[%clk 0:02:54]} 3. Nf3 {[%clk 0:02:57]}  Nc6 {[%clk 0:02:54]} 4. d3 {[%clk 0:02:53]}  Bb4 {[%clk 0:02:54]} 5. Bd2 {[%clk 0:02:53]}  O-O {[%clk 0:02:51]} 6. e4 {[%clk 0:02:49]}  d6 {[%clk 0:02:47]} 7. g3 {[%clk 0:02:49]}  a6 {[%clk 0:02:38]} 8. Bg2 {[%clk 0:02:48]}  Bc5 {[%clk 0:02:38]} 9. h3 {[%clk 0:02:42]}  Nd4 {[%clk 0:02:38]} 10. O-O {[%clk 0:02:32]}  Rb8 {[%clk 0:02:27]} 11. Rb1 {[%clk 0:02:32]}  b5 {[%clk 0:02:25]} 12. cxb5 {[%clk 0:02:17]}  axb5 {[%clk 0:02:23]} 13. b4 {[%clk 0:02:15]}  Bb6 {[%clk 0:02:23]} 14. Kh2 {[%clk 0:01:58]}  c6 {[%clk 0:02:21]} 15. a4 {[%clk 0:01:57]}  Nxf3+ {[%clk 0:02:14]} 16. Qxf3 {[%clk 0:01:41]}  bxa4 {[%clk 0:02:09]} 17. Nxa4 {[%clk 0:01:39]}  Bd4 {[%clk 0:02:09]} 18. Bg5 {[%clk 0:01:35]}  h6 {[%clk 0:02:09]} 19. Bxf6 {[%clk 0:01:35]}  Qxf6 {[%clk 0:02:10]} 20. Qxf6 {[%clk 0:01:34]}  gxf6 {[%clk 0:02:11]} 21. Rfc1 {[%clk 0:01:25]}  Bd7 {[%clk 0:02:11]} 22. Nc3 {[%clk 0:00:26]}  Kg7 {[%clk 0:02:00]} 23. Kg1 {[%clk 0:00:25]}  Rb7 {[%clk 0:01:59]} 24. Ne2 {[%clk 0:00:25]}  Ba7 {[%clk 0:02:00]} 25. Rc2 {[%clk 0:00:14]}  Rfb8 {[%clk 0:02:00]} 26. Ra1 {[%clk 0:00:14]}  Bb6 {[%clk 0:01:57]} 27. Bf1 {[%clk 0:00:10]}  Bd8 {[%clk 0:01:55]} 28. Nc3 {[%clk 0:00:04]}  Rxb4 {[%clk 0:01:55]} 29. Ra7 {[%clk 0:00:02]}  R4b7 {[%clk 0:01:55]} 30. Rxb7 {[%clk 0:00:01]}  Rxb7 {[%clk 0:01:56]} 0-1


[Site "https://www.chess.com"]

[Event "Titled Tuesday Blitz April 4 Late 2023"]
[White "Vovk, Orest"]
[Black "Andreassen, Lars"]
[WhiteFideId "14113490"]
[BlackFideId "1504878"]
[WhiteElo "2215"]
[BlackElo "2119"]
[Result "1-0"]
[Round "03"]
[TimeControl "180+2"]
[Date "2023.04.04"]
[WhiteClock "0:00:04"]
[BlackClock "0:00:01"]

1. h4 {[%clk 0:02:52]}  d5 {[%clk 0:02:57]} 2. h5 {[%clk 0:02:51]}  e5 {[%clk 0:02:54]} 3. h6 {[%clk 0:02:50]}  Nxh6 {[%clk 0:02:51]} 4. d4 {[%clk 0:02:49]}  Nc6 {[%clk 0:02:36]} 5. dxe5 {[%clk 0:02:45]}  Nxe5 {[%clk 0:02:30]} 6. Bxh6 {[%clk 0:02:43]}  gxh6 {[%clk 0:02:29]} 7. Nf3 {[%clk 0:02:44]}  Nxf3+ {[%clk 0:02:25]} 8. gxf3 {[%clk 0:02:44]}  Bg7 {[%clk 0:02:24]} 9. Nc3 {[%clk 0:02:44]}  c6 {[%clk 0:02:10]} 10. Qd3 {[%clk 0:02:32]}  Qf6 {[%clk 0:02:01]} 11. O-O-O {[%clk 0:02:28]}  Be6 {[%clk 0:01:49]} 12. Bh3 {[%clk 0:02:28]}  O-O-O {[%clk 0:01:43]} 13. Bxe6+ {[%clk 0:02:27]}  fxe6 {[%clk 0:01:39]} 14. Rdg1 {[%clk 0:02:04]}  Rd7 {[%clk 0:01:33]} 15. Nd1 {[%clk 0:02:02]}  c5 {[%clk 0:01:27]} 16. Qa3 {[%clk 0:01:47]}  Kb8 {[%clk 0:01:25]} 17. Qxc5 {[%clk 0:01:42]}  Rc7 {[%clk 0:01:11]} 18. Qd6 {[%clk 0:01:38]}  Rc8 {[%clk 0:01:10]} 19. c3 {[%clk 0:01:30]}  Ka8 {[%clk 0:01:07]} 20. Rg4 {[%clk 0:01:09]}  d4 {[%clk 0:00:57]} 21. c4 {[%clk 0:00:20]}  Rxc4+ {[%clk 0:00:55]} 22. Kd2 {[%clk 0:00:21]}  Rc2+ {[%clk 0:00:34]} 23. Ke1 {[%clk 0:00:21]}  Bf8 {[%clk 0:00:14]} 24. Qxd4 {[%clk 0:00:16]}  e5 {[%clk 0:00:06]} 25. Qd3 {[%clk 0:00:13]}  Qc6 {[%clk 0:00:04]} 26. Kf1 {[%clk 0:00:12]}  Rc1 {[%clk 0:00:04]} 27. Kg2 {[%clk 0:00:12]}  Bc5 {[%clk 0:00:03]} 28. Rh5 {[%clk 0:00:06]}  Bd6 {[%clk 0:00:02]} 29. Rxh6 {[%clk 0:00:06]}  Rd8 {[%clk 0:00:01]} 30. Rg7 {[%clk 0:00:04]} 1-0


[Site "https://www.chess.com"]